{"text_format":"1","workbook":"xlsx","n_sheets":3,"sheets":["Analisis","Imprimir","Sheet2"],"not_rendered":{"charts":0,"images":3,"macros":1,"external_links":0,"defined_names":0,"comments":0,"pivot_tables":0},"unopened":[],"bounds":{"document_bytes":16777216,"sheet_cells":100000,"rows_first":2000,"rows_last":500,"rows_between":2000,"halvings":0,"cell_chars":16384,"cell_head_chars":4096},"cells_cut":0,"cells_raw":0,"read":"whole","date_system":"1900"}

{"sheet":"Analisis","index":0,"n_rows":45,"n_cols":22,"rows_kept":45,"cut":false,"hidden":false,"merged":[[1,1,1,14],[2,1,2,14],[3,1,3,14],[22,1,22,5],[22,6,22,10],[22,11,22,14],[23,1,23,5],[23,6,23,10],[23,11,23,14],[24,11,24,14],[25,11,25,14],[26,11,26,14],[27,11,27,14],[28,11,28,14],[34,1,34,5],[34,6,34,10],[34,11,34,14],[35,11,35,14],[38,2,38,6],[38,10,38,14],[40,2,40,6],[40,10,40,14],[29,11,29,14],[30,11,30,14],[31,11,31,14],[32,11,32,14],[33,1,33,5],[33,6,33,10],[33,11,33,14]]}
[]
[null,"Universidad de Puerto Rico"]
[null,"Recinto Universitario de Mayagüez"]
[null,"Revisión de Progreso Académico "]
[]
[]
[]
[]
[]
[]
[]
[]
[]
[]
[null,"Nombre del Estudiante",null,null,null,null,null,null,"Número de Estudiante"]
[null,"Programa Académico",null,null,null,null,null,null,null,null,"Año de Suspensión","Próximo-1er Sem","Próximo-2do Sem"]
[null,"Año de Estudio al quedar suspendido",null,null,null,null,null,null,"Promedio Semestre",null,null,null,null,null,null,null,"Cálculo de Promedio Acumulado"]
[null,"Número de Años del Programa",null,null,null,null,null,null,"Promedio Acumulado",null,null,null,null,null,null,null,null,"Año Pasado","2do Sem"]
[null,"Total de Créditos del Programa",null,null,null,null,null,null,"Promedio Requerido",null,null,null,null,null,null,null,"Puntos de Honor Totales- Al quedar suspendido",49.0,{"$f":"R25","v":""}]
[null,null,{"$f":"C18&C17","v":""},null,null,null,null,null,"Porciento Acumulado",null,null,null,null,null,null,null,"Total de Créditos Acumulados- Al quedar suspendido",35.0,""]
[null,null,{"$f":"C18&(C17+1)","v":"1"},null,null,null,null,null,"Porciento Requerido",null,null,null,null,null,null,null,"Total de Créditos Aprobados- Al quedar suspendido",14.0]
[]
[null,"Sesión Académica",null,null,null,null,"Sesión Académica",null,null,null,null,"Observaciones",null,null,null,null,null,"Siguiente Año"]
[null,"Primer Semestre 20-21",null,null,null,null,"Segundo Semestre 20-21",null,null,null,null,null,null,null,null,null,null,"1er","2do"]
[null,"Curso","Créditos","Nota Esperada","¿Curso Repetido?",null,"Curso","Créditos","Nota Esperada","¿Curso Repetido?","Nota Anterior",null,null,null,null,null,"Puntos de Honor Acumulados"]
[null,null,null,null,null,null,null,null,null,null,null,null,null,null,null,null,"Total de Créditos Acumulados"]
[null,null,null,null,null,null,null,null,null,null,null,null,null,null,null,null,"Total de Créditos Aprobados"]
[null,null,null,null,null,null,null,null,null,null,null,null,null,null,null,null,"Créditos requeridos"]
[null,null,null,null,null,null,null,null,null,null,null,null,null,null,null,null,"Créditos que le faltan para cumplir con requeridos",null,{"$f":"IF(S28=0,\"\",IF(S28>S27,S28-S27,\"Cumple\"))","v":""}]
[]
[null,null,null,null,null,null,null,null,null,null,null,null,null,null,null,null,null,null,null,null,"Totales"]
[]
[null,null,null,null,null,null,null,null,null,null,null,null,null,null,null,null,{"$f":"IF(AND(E26=\"SI\",F26=\"D\"),0,IF(D26<>\"F\",IF(D26<>\"\",C26,0)))","v":0},{"$f":"IF(AND(J26=\"SI\",K26=\"D\"),0,IF(I26<>\"F\",IF(I26<>\"\",H26,0)))","v":0},null,null,{"$f":"IF(AND(E26=\"si\",F26<>\"W\"),0,C26)","v":""},{"$f":"IF(AND(J26=\"si\",K26<>\"W\"),0,H26)","v":""}]
[null,null,null,null,null,null,{"$f":"IF(ROUNDUP(M19,2)<#REF!,\"No alcanza progreso en 2do Semestre por Promedio\",\"Alcanza progreso en 2do Semestre por Promedio\")","v":"#REF!"},null,null,null,null,null,null,null,null,null,0,0,null,null,"",""]
[null,{"$f":"IF(L20<L21,\"No alcanza progreso en 1er Semestre por Créditos\",\"Alcanza progreso en 1er Semestre por Créditos\")","v":"Alcanza progreso en 1er Semestre por Créditos"},null,null,null,null,{"$f":"IF(M20<M21,\"No alcanza progreso en 2do Semestre por Créditos\",\"Alcanza progreso en 2do Semestre por Créditos\")","v":"Alcanza progreso en 2do Semestre por Créditos"},null,null,null,null,null,null,null,null,null,0,0,null,null,"",""]
[null,null,null,null,null,null,null,null,null,null,null,null,null,null,null,null,0,0,null,null,"",""]
[null,null,null,null,null,null,null,null,null,null,null,null,null,null,null,null,0,0,null,null,"",""]
[null,null,null,null,null,null,null,null,null,null,null,null,null,null,null,null,0,0,null,null,"",""]
[null,"Firma del Estudiante",null,null,null,null,null,null,"Firma Orientador Académico (Si aplica)",null,null,null,null,null,null,null,0,0,null,null,"",""]
[null,null,null,null,null,null,null,null,null,null,null,null,null,null,null,null,0,0,null,null,"",""]
[null,"Vo.Bo.",null,null,null,null,null,null,"Fecha"]
[null,null,"Director del Departamento"]
[]
[]
[null,"Esta Programación Está Conforme A La Certificación 07-28: Normas De Aprovechamiento Académico Y Normas Generales Para La Concesión De Probatorias Para Estudiantes Subgraduados Del Recinto Universitario De Mayagüez"]

{"sheet":"Imprimir","index":1,"n_rows":44,"n_cols":9,"rows_kept":44,"cut":false,"hidden":false,"merged":[[18,1,18,2],[19,1,19,2],[19,3,19,4],[1,1,1,8],[2,1,2,8],[3,1,3,8],[13,2,13,4],[14,2,14,4],[18,3,18,4],[18,5,18,8],[19,5,19,8],[20,5,20,8],[21,5,21,8],[22,5,22,8],[23,5,23,8],[24,5,24,8],[25,5,25,8],[30,3,30,4],[30,5,30,8],[31,1,31,2],[31,3,31,4],[31,5,31,8],[37,2,37,4],[37,6,37,8],[39,2,39,4],[39,6,39,8],[26,5,26,8],[27,5,27,8],[28,5,28,8],[29,1,29,2],[29,3,29,4],[29,5,29,8],[30,1,30,2]]}
[]
[null,"Universidad de Puerto Rico"]
[null,"Recinto Universitario de Mayagüez"]
[null,"Revisión de Progreso Académico "]
[]
[]
[]
[]
[]
[]
[]
[]
[]
[null,"Nombre del Estudiante",{"$f":"Analisis!C15","v":""},null,null,"Número de Estudiante",{"$f":"Analisis!K15","v":""}]
[null,"Programa Académico",{"$f":"Analisis!C16","v":""},null,null,null,"Inicial",{"$f":"Analisis!L16","v":"Próximo-1er Sem"},{"$f":"Analisis!M16","v":"Próximo-2do Sem"}]
[null,"Año de Estudio",{"$f":"Analisis!C17","v":""},null,null,{"$f":"Analisis!I17","v":"Promedio Semestre"},{"$f":"IF(Analisis!K17=\"\",\"\",Analisis!K17)","v":""},{"$f":"Analisis!L17","v":""},{"$f":"Analisis!M17","v":""}]
[null,null,null,null,null,{"$f":"Analisis!I18","v":"Promedio Acumulado"},{"$f":"Analisis!K18","v":""},{"$f":"Analisis!L18","v":""},{"$f":"Analisis!M19","v":""}]
[null,null,null,null,null,{"$f":"Analisis!I19","v":"Promedio Requerido"},{"$f":"Analisis!K19","v":""},{"$f":"Analisis!L19","v":""},{"$f":"#REF!","v":"#REF!"}]
[null,"Sesión Académica",null,"Sesión Académica",null,"Observaciones"]
[null,{"$f":"Analisis!B24","v":"Primer Semestre 20-21"},null,{"$f":"Analisis!G24","v":"Segundo Semestre 20-21"}]
[null,"Curso","Créditos","Curso","Créditos",{"$f":"IF(B32<=0,\"Alcanza progreso en 1er Semestre\",\"No alcanza progreso en 1er Semestre\")","v":"Alcanza progreso en 1er Semestre"}]
[null,{"$f":"IF(Analisis!B26=\"\",\"\",Analisis!B26)","v":""},{"$f":"IF(Analisis!C26=\"\",\"\",Analisis!C26)","v":""},{"$f":"IF(Analisis!G26=\"\",\"\",Analisis!G26)","v":""},{"$f":"IF(Analisis!H26=\"\",\"\",Analisis!H26)","v":""},{"$f":"IF(D32<=0,\"Alcanza progreso en 2do Semestre\",\"No alcanza progreso en 2do Semestre\")","v":"Alcanza progreso en 2do Semestre"}]
[null,{"$f":"IF(Analisis!B27=\"\",\"\",Analisis!B27)","v":""},{"$f":"IF(Analisis!C27=\"\",\"\",Analisis!C27)","v":""},{"$f":"IF(Analisis!G27=\"\",\"\",Analisis!G27)","v":""},{"$f":"IF(Analisis!H27=\"\",\"\",Analisis!H27)","v":""},{"$f":"IF(Analisis!G34=\"\",\"\",Analisis!G34)","v":"#REF!"}]
[null,{"$f":"IF(Analisis!B28=\"\",\"\",Analisis!B28)","v":""},{"$f":"IF(Analisis!C28=\"\",\"\",Analisis!C28)","v":""},{"$f":"IF(Analisis!G28=\"\",\"\",Analisis!G28)","v":""},{"$f":"IF(Analisis!H28=\"\",\"\",Analisis!H28)","v":""},{"$f":"IF(Analisis!G35=\"\",\"\",Analisis!G35)","v":"Alcanza progreso en 2do Semestre por Créditos"}]
[null,{"$f":"IF(Analisis!B29=\"\",\"\",Analisis!B29)","v":""},{"$f":"IF(Analisis!C29=\"\",\"\",Analisis!C29)","v":""},{"$f":"IF(Analisis!G29=\"\",\"\",Analisis!G29)","v":""},{"$f":"IF(Analisis!H29=\"\",\"\",Analisis!H29)","v":""},{"$f":"IF(Analisis!L29=\"\",\"\",Analisis!L29)","v":""}]
[null,{"$f":"IF(Analisis!B30=\"\",\"\",Analisis!B30)","v":""},{"$f":"IF(Analisis!C30=\"\",\"\",Analisis!C30)","v":""},{"$f":"IF(Analisis!G30=\"\",\"\",Analisis!G30)","v":""},{"$f":"IF(Analisis!H30=\"\",\"\",Analisis!H30)","v":""},{"$f":"IF(Analisis!L30=\"\",\"\",Analisis!L30)","v":""}]
[null,{"$f":"IF(Analisis!B31=\"\",\"\",Analisis!B31)","v":""},{"$f":"IF(Analisis!C31=\"\",\"\",Analisis!C31)","v":""},{"$f":"IF(Analisis!G31=\"\",\"\",Analisis!G31)","v":""},{"$f":"IF(Analisis!H31=\"\",\"\",Analisis!H31)","v":""},{"$f":"IF(Analisis!L31=\"\",\"\",Analisis!L31)","v":""}]
[null,{"$f":"IF(Analisis!B32=\"\",\"\",Analisis!B32)","v":""},{"$f":"IF(Analisis!C32=\"\",\"\",Analisis!C32)","v":""},{"$f":"IF(Analisis!G32=\"\",\"\",Analisis!G32)","v":""},{"$f":"IF(Analisis!H32=\"\",\"\",Analisis!H32)","v":""},{"$f":"IF(Analisis!L32=\"\",\"\",Analisis!L32)","v":""}]
[null,{"$f":"IF(Analisis!B33=\"\",\"\",Analisis!B33)","v":""},{"$f":"IF(Analisis!C33=\"\",\"\",Analisis!C33)","v":""},{"$f":"IF(Analisis!G33=\"\",\"\",Analisis!G33)","v":""},{"$f":"IF(Analisis!H33=\"\",\"\",Analisis!H33)","v":""},{"$f":"IF(Analisis!L33=\"\",\"\",Analisis!L33)","v":""}]
[null,"Aumento mínimo Requerido",null,"Aumento mínimo Requerido",null,{"$f":"IF(Analisis!L34=\"\",\"\",Analisis!L34)","v":""}]
[null,"en el promedio",null,"en el promedio",null,{"$f":"IF(Analisis!L35=\"\",\"\",Analisis!L35)","v":""}]
[null,{"$f":"Analisis!B36","v":""},null,{"$f":"Analisis!G36","v":""},null,{"$f":"IF(Analisis!L36=\"\",\"\",Analisis!L36)","v":""}]
[]
[null,"*El estudiante subgraduado será elegible a recibir ayuda económica para cursos repetidos con \"F\" y \"W\"."]
[null,"Los cursos con D o más serán autorizados y tendrán limitación de una (1) repetición por curso."]
[null,"*Fórmula = (Promedio Requerido - Promedio Acumulado)/2= *Aumento mínimo requerido en el promedio para sesión dentro del plan de estudios. "]
[]
[null,"Firma del Estudiante",null,null,null,"Firma Miembro Comité de Revisión"]
[]
[null,"Vo.Bo.",null,null,null,"Fecha"]
[null,null,"Director del Departamento"]
[]
[]
[null,"Esta programación está conforme a la Certificación 111 de 2013-2014- POLÍTICA Y NORMAS DE ELEGIBILIDAD ACADÉMICA PARA LA PARTICIPACIÓN EN LOS PROGRAMAS DE AYUDAS ECONÓMICAS DE LA UNIVERSIDAD DE PUERTO RICO"]

{"sheet":"Sheet2","index":2,"n_rows":64,"n_cols":20,"rows_kept":64,"cut":false,"hidden":false,"merged":[]}
[]
[]
[null,null,"1er Semestre","2do Semestre"]
[null,null,{"$f":"IF(Analisis!D26=\"A\",4,IF(Analisis!D26=\"B\",3,IF(Analisis!D26=\"C\",2,IF(Analisis!D26=\"D\",1,IF(Analisis!D26=\"F\",0,0)))))","v":0},{"$f":"IF(Analisis!I26=\"A\",4,IF(Analisis!I26=\"B\",3,IF(Analisis!I26=\"C\",2,IF(Analisis!I26=\"D\",1,IF(Analisis!I26=\"F\",0,0)))))","v":0}]
[null,null,{"$f":"IF(Analisis!D27=\"A\",4,IF(Analisis!D27=\"B\",3,IF(Analisis!D27=\"C\",2,IF(Analisis!D27=\"D\",1,IF(Analisis!D27=\"F\",0,0)))))","v":0},{"$f":"IF(Analisis!I27=\"A\",4,IF(Analisis!I27=\"B\",3,IF(Analisis!I27=\"C\",2,IF(Analisis!I27=\"D\",1,IF(Analisis!I27=\"F\",0,0)))))","v":0},null,null,null,null,null,null,null,null,null,null,null,null,"Conteo de Créditos"]
[null,null,{"$f":"IF(Analisis!D28=\"A\",4,IF(Analisis!D28=\"B\",3,IF(Analisis!D28=\"C\",2,IF(Analisis!D28=\"D\",1,IF(Analisis!D28=\"F\",0,0)))))","v":0},{"$f":"IF(Analisis!I28=\"A\",4,IF(Analisis!I28=\"B\",3,IF(Analisis!I28=\"C\",2,IF(Analisis!I28=\"D\",1,IF(Analisis!I28=\"F\",0,0)))))","v":0},null,null,null,null,null,null,null,null,null,null,null,null,"Primer Semestre",null,"Segundo Semestre"]
[null,null,{"$f":"IF(Analisis!D29=\"A\",4,IF(Analisis!D29=\"B\",3,IF(Analisis!D29=\"C\",2,IF(Analisis!D29=\"D\",1,IF(Analisis!D29=\"F\",0,0)))))","v":0},{"$f":"IF(Analisis!I29=\"A\",4,IF(Analisis!I29=\"B\",3,IF(Analisis!I29=\"C\",2,IF(Analisis!I29=\"D\",1,IF(Analisis!I29=\"F\",0,0)))))","v":0},null,null,null,null,null,"A",1.0,null,"NO",null,null,null,{"$f":"Analisis!C26","v":""},{"$f":"IF(Analisis!D26=\"F\",0, IF(Analisis!D26=\"\",0,Sheet2!Q7))","v":0},{"$f":"Analisis!H26","v":""},{"$f":"IF(Analisis!I26=\"F\",0, IF(Analisis!I26=\"\",0,Sheet2!S7))","v":0}]
[null,null,{"$f":"IF(Analisis!D30=\"A\",4,IF(Analisis!D30=\"B\",3,IF(Analisis!D30=\"C\",2,IF(Analisis!D30=\"D\",1,IF(Analisis!D30=\"F\",0,0)))))","v":0},{"$f":"IF(Analisis!I30=\"A\",4,IF(Analisis!I30=\"B\",3,IF(Analisis!I30=\"C\",2,IF(Analisis!I30=\"D\",1,IF(Analisis!I30=\"F\",0,0)))))","v":0},null,null,null,null,null,"B",2.0,null,"SI",null,null,null,{"$f":"Analisis!C27","v":""},{"$f":"IF(Analisis!D27=\"F\",0, IF(Analisis!D27=\"\",0,Sheet2!Q8))","v":0},{"$f":"Analisis!H27","v":""},{"$f":"IF(Analisis!I27=\"F\",0, IF(Analisis!I27=\"\",0,Sheet2!S8))","v":0}]
[null,null,{"$f":"IF(Analisis!D31=\"A\",4,IF(Analisis!D31=\"B\",3,IF(Analisis!D31=\"C\",2,IF(Analisis!D31=\"D\",1,IF(Analisis!D31=\"F\",0,0)))))","v":0},{"$f":"IF(Analisis!I31=\"A\",4,IF(Analisis!I31=\"B\",3,IF(Analisis!I31=\"C\",2,IF(Analisis!I31=\"D\",1,IF(Analisis!I31=\"F\",0,0)))))","v":0},null,null,null,null,null,"C",3.0,null,null,null,null,null,{"$f":"Analisis!C28","v":""},{"$f":"IF(Analisis!D28=\"F\",0, IF(Analisis!D28=\"\",0,Sheet2!Q9))","v":0},{"$f":"Analisis!H28","v":""},{"$f":"IF(Analisis!I28=\"F\",0, IF(Analisis!I28=\"\",0,Sheet2!S9))","v":0}]
[null,null,{"$f":"IF(Analisis!D32=\"A\",4,IF(Analisis!D32=\"B\",3,IF(Analisis!D32=\"C\",2,IF(Analisis!D32=\"D\",1,IF(Analisis!D32=\"F\",0,0)))))","v":0},{"$f":"IF(Analisis!I32=\"A\",4,IF(Analisis!I32=\"B\",3,IF(Analisis!I32=\"C\",2,IF(Analisis!I32=\"D\",1,IF(Analisis!I32=\"F\",0,0)))))","v":0},null,null,null,null,null,"D",4.0,null,null,null,null,null,{"$f":"Analisis!C29","v":""},{"$f":"IF(Analisis!D29=\"F\",0, IF(Analisis!D29=\"\",0,Sheet2!Q10))","v":0},{"$f":"Analisis!H29","v":""},{"$f":"IF(Analisis!I29=\"F\",0, IF(Analisis!I29=\"\",0,Sheet2!S10))","v":0}]
[null,null,{"$f":"IF(Analisis!D33=\"A\",4,IF(Analisis!D33=\"B\",3,IF(Analisis!D33=\"C\",2,IF(Analisis!D33=\"D\",1,IF(Analisis!D33=\"F\",0,0)))))","v":0},{"$f":"IF(Analisis!I33=\"A\",4,IF(Analisis!I33=\"B\",3,IF(Analisis!I33=\"C\",2,IF(Analisis!I33=\"D\",1,IF(Analisis!I33=\"F\",0,0)))))","v":0},null,null,null,null,null,"F",5.0,null,null,null,null,null,{"$f":"Analisis!C30","v":""},{"$f":"IF(Analisis!D30=\"F\",0, IF(Analisis!D30=\"\",0,Sheet2!Q11))","v":0},{"$f":"Analisis!H30","v":""},{"$f":"IF(Analisis!I30=\"F\",0, IF(Analisis!I30=\"\",0,Sheet2!S11))","v":0}]
[null,null,"Año","Promedio Req.",null,"%Créditos Requerido",null,null,null,"W",6.0,null,null,null,null,null,{"$f":"Analisis!C31","v":""},{"$f":"IF(Analisis!D31=\"F\",0, IF(Analisis!D31=\"\",0,Sheet2!Q12))","v":0},{"$f":"Analisis!H31","v":""},{"$f":"IF(Analisis!I31=\"F\",0, IF(Analisis!I31=\"\",0,Sheet2!S12))","v":0}]
[null,null,1.0,1.7,41.0,0.125,null,null,null,null,7.0,null,null,null,null,null,{"$f":"Analisis!C32","v":""},{"$f":"IF(Analisis!D32=\"F\",0, IF(Analisis!D32=\"\",0,Sheet2!Q13))","v":0},{"$f":"Analisis!H32","v":""},{"$f":"IF(Analisis!I32=\"F\",0, IF(Analisis!I32=\"\",0,Sheet2!S13))","v":0}]
[null,null,2.0,1.9,42.0,0.25,null,null,null,null,8.0,null,null,null,null,null,{"$f":"Analisis!C33","v":""},{"$f":"IF(Analisis!D33=\"F\",0, IF(Analisis!D33=\"\",0,Sheet2!Q14))","v":0},{"$f":"Analisis!H33","v":""},{"$f":"IF(Analisis!I33=\"F\",0, IF(Analisis!I33=\"\",0,Sheet2!S14))","v":0}]
[null,null,3.0,1.95,43.0,0.375,null,null,null,null,9.0,null,null,null,null,null,{"$f":"Analisis!#REF!","v":"#ERROR!"},{"$f":"IF(Analisis!#REF!=\"F\",0, IF(Analisis!#REF!=\"\",0,Sheet2!Q15))","v":"#ERROR!"},{"$f":"Analisis!#REF!","v":"#ERROR!"},{"$f":"IF(Analisis!#REF!=\"F\",0, IF(Analisis!#REF!=\"\",0,Sheet2!S15))","v":"#ERROR!"}]
[null,null,4.0,2.0,44.0,0.5,null,null,null,null,null,null,null,null,null,null,{"$f":"Analisis!#REF!","v":"#ERROR!"},{"$f":"IF(Analisis!#REF!=\"F\",0, IF(Analisis!#REF!=\"\",0,Sheet2!Q16))","v":"#ERROR!"},{"$f":"Analisis!#REF!","v":"#ERROR!"},{"$f":"IF(Analisis!#REF!=\"F\",0, IF(Analisis!#REF!=\"\",0,Sheet2!S16))","v":"#ERROR!"}]
[null,null,5.0,2.0,45.0,0.625]
[null,null,6.0,2.0,46.0,0.75,null,null,null,null,null,null,null,null,null,null,"Suma de Créditos",{"$f":"SUM(R7:R17)","v":"#ERROR!"},null,{"$f":"SUM(T7:T17)","v":"#ERROR!"}]
[null,null,7.0,2.0,47.0,0.875]
[null,null,8.0,2.0,48.0,1.0]
[null,null,9.0,2.0,51.0,0.1]
[null,null,10.0,2.0,52.0,{"$f":"F21+0.1","v":0.2}]
[null,null,null,null,53.0,0.3]
[null,null,null,null,54.0,0.4]
[null,null,null,null,55.0,0.5]
[null,null,null,null,56.0,0.6]
[null,null,null,null,57.0,0.7]
[null,null,null,null,58.0,0.8]
[null,null,null,null,59.0,0.9]
[null,null,null,null,510.0,1]
[]
[]
[]
[]
[]
[]
[]
[]
[]
[]
[]
[]
[]
[]
[]
[]
[]
[]
[]
[]
[]
[null,null,null,null,null,null,null,null,null,null,"A","Si","D"]
[null,null,"Repeticiones",null,null,null,null,null,null,null,"B","No","F"]
[null,null,null,null,null,null,null,null,null,null,"C",null,"W"]
[null,null,"1er Sem",null,null,null,"2do Sem",null,null,null,"D"]
[null,null,"Créditos ","Puntos de Honor",null,{"$f":"IF(Analisis!I26=\"F\",0,Analisis!H26)","v":""},"Créditos","Puntos de Honor",null,null,"F"]
[null,null,{"$f":"IF(Analisis!E26=\"SI\",IF(Analisis!F26=\"W\",0,IF(Analisis!F26=\"\",0,-Analisis!C26)),0)","v":0},{"$f":"IF(Analisis!F26=\"D\",Analisis!C26*-1,0)","v":0},null,{"$f":"IF(Analisis!I27=\"F\",0,Analisis!H27)","v":""},{"$f":"IF(Analisis!J26=\"SI\",IF(Analisis!K26=\"W\",0,IF(Analisis!K26=\"\",0,-Analisis!H26)),0)","v":0},{"$f":"IF(Analisis!K26=\"D\",Analisis!H26*-1,0)","v":0}]
[null,null,{"$f":"IF(Analisis!E27=\"SI\",IF(Analisis!F27=\"W\",0,IF(Analisis!F27=\"\",0,-Analisis!C27)),0)","v":0},{"$f":"IF(Analisis!F27=\"D\",Analisis!C27*-1,0)","v":0},null,{"$f":"IF(Analisis!I28=\"F\",0,Analisis!H28)","v":""},{"$f":"IF(Analisis!J27=\"SI\",IF(Analisis!K27=\"W\",0,IF(Analisis!K27=\"\",0,-Analisis!H27)),0)","v":0},{"$f":"IF(Analisis!K27=\"D\",Analisis!H27*-1,0)","v":0}]
[null,null,{"$f":"IF(Analisis!E28=\"SI\",IF(Analisis!F28=\"W\",0,IF(Analisis!F28=\"\",0,-Analisis!C28)),0)","v":0},{"$f":"IF(Analisis!F28=\"D\",Analisis!C28*-1,0)","v":0},null,{"$f":"IF(Analisis!I29=\"F\",0,Analisis!H29)","v":""},{"$f":"IF(Analisis!J28=\"SI\",IF(Analisis!K28=\"W\",0,IF(Analisis!K28=\"\",0,-Analisis!H28)),0)","v":0},{"$f":"IF(Analisis!K28=\"D\",Analisis!H28*-1,0)","v":0}]
[null,null,{"$f":"IF(Analisis!E29=\"SI\",IF(Analisis!F29=\"W\",0,IF(Analisis!F29=\"\",0,-Analisis!C29)),0)","v":0},{"$f":"IF(Analisis!F29=\"D\",Analisis!C29*-1,0)","v":0},null,{"$f":"IF(Analisis!I30=\"F\",0,Analisis!H30)","v":""},{"$f":"IF(Analisis!J29=\"SI\",IF(Analisis!K29=\"W\",0,IF(Analisis!K29=\"\",0,-Analisis!H29)),0)","v":0},{"$f":"IF(Analisis!K29=\"D\",Analisis!H29*-1,0)","v":0}]
[null,null,{"$f":"IF(Analisis!E30=\"SI\",IF(Analisis!F30=\"W\",0,IF(Analisis!F30=\"\",0,-Analisis!C30)),0)","v":0},{"$f":"IF(Analisis!F30=\"D\",Analisis!C30*-1,0)","v":0},null,{"$f":"IF(Analisis!I31=\"F\",0,Analisis!H31)","v":""},{"$f":"IF(Analisis!J30=\"SI\",IF(Analisis!K30=\"W\",0,IF(Analisis!K30=\"\",0,-Analisis!H30)),0)","v":0},{"$f":"IF(Analisis!K30=\"D\",Analisis!H30*-1,0)","v":0}]
[null,null,{"$f":"IF(Analisis!E31=\"SI\",IF(Analisis!F31=\"W\",0,IF(Analisis!F31=\"\",0,-Analisis!C31)),0)","v":0},{"$f":"IF(Analisis!F31=\"D\",Analisis!C31*-1,0)","v":0},null,{"$f":"IF(Analisis!I32=\"F\",0,Analisis!H32)","v":""},{"$f":"IF(Analisis!J31=\"SI\",IF(Analisis!K31=\"W\",0,IF(Analisis!K31=\"\",0,-Analisis!H31)),0)","v":0},{"$f":"IF(Analisis!K31=\"D\",Analisis!H31*-1,0)","v":0}]
[null,null,{"$f":"IF(Analisis!E32=\"SI\",IF(Analisis!F32=\"W\",0,IF(Analisis!F32=\"\",0,-Analisis!C32)),0)","v":0},{"$f":"IF(Analisis!F32=\"D\",Analisis!C32*-1,0)","v":0},null,{"$f":"IF(Analisis!I33=\"F\",0,Analisis!H33)","v":""},{"$f":"IF(Analisis!J32=\"SI\",IF(Analisis!K32=\"W\",0,IF(Analisis!K32=\"\",0,-Analisis!H32)),0)","v":0},{"$f":"IF(Analisis!K32=\"D\",Analisis!H32*-1,0)","v":0}]
[null,null,{"$f":"IF(Analisis!E33=\"SI\",IF(Analisis!F33=\"W\",0,IF(Analisis!F33=\"\",0,-Analisis!C33)),0)","v":0},{"$f":"IF(Analisis!F33=\"D\",Analisis!C33*-1,0)","v":0},null,{"$f":"IF(Analisis!I34=\"F\",0,Analisis!H34)","v":""},{"$f":"IF(Analisis!J33=\"SI\",IF(Analisis!K33=\"W\",0,IF(Analisis!K33=\"\",0,-Analisis!H33)),0)","v":0},{"$f":"IF(Analisis!K33=\"D\",Analisis!H33*-1,0)","v":0}]